[Event "23rd ETCC Women 2021"]
[Site "Catez"]
[Date "2021.11.16"]
[Round "5.41"]
[White "Shvayger, Yuliya"]
[Black "Unuk, Laura"]
[Result "1/2-1/2"]
[ECO "C48"]
[WhiteElo "2351"]
[BlackElo "2353"]
[Annotator "NA"]
[PlyCount "104"]
[EventDate "2021.11.08"]
[EventType "team-tourn"]
[EventCountry "SLO"]
[SourceTitle "playchess.com"]
[Source "ChessBase"]
[SourceQuality "1"]
[WhiteTeam "Israel"]
[BlackTeam "Slovenia"]
[WhiteTeamCountry "ISR"]
[BlackTeamCountry "SLO"]
[TimeControl "40/5400+30:1800+30"]

1. e4 {[%emt 0:02:13]} e5 {[%emt 0:00:12]} 2. Nf3 {[%emt 0:00:17]} Nc6 {
[%emt 0:00:07]} 3. Nc3 {[%emt 0:00:13]} Nf6 {[%emt 0:00:15]} 4. Bb5 {[%emt 0:
00:13]} Nd4 {[%emt 0:02:45]} 5. Nxd4 {[%emt 0:01:40]} exd4 {[%emt 0:02:56]} 6.
Nd5 {[%emt 0:00:03]} Nxd5 {[%emt 0:06:11]} 7. exd5 {[%emt 0:00:04]} Qe7+ {
[%emt 0:03:27]} 8. Qe2 {[%emt 0:00:56]} a6 {[%emt 0:00:41]} 9. Bd3 {[%emt 0:06:
13]} d6 {[%emt 0:05:01]} 10. b3 {[%emt 0:08:51]} g6 {[%emt 0:08:53]} 11. Bb2 {
[%emt 0:01:32]} Bg7 {[%emt 0:04:20]} 12. Qxe7+ {[%emt 0:13:20]} Kxe7 {[%emt 0:
01:14]} 13. O-O {[%emt 0:00:07]} Re8 {[%emt 0:00:43]} 14. f4 {[%emt 0:14:04]}
f5 {[%emt 0:18:30]} 15. a4 {[%emt 0:01:29]} Bd7 {[%emt 0:04:42]} 16. a5 {
[%emt 0:06:15]} Bb5 {[%emt 0:02:58]} 17. Bxb5 {[%emt 0:06:33]} axb5 {[%emt 0:
00:04]} 18. Rfe1+ {[%emt 0:00:10]} Kd7 {[%emt 0:01:36]} 19. Rxe8 {[%emt 0:00:
26]} Rxe8 {[%emt 0:00:05]} 20. Kf2 {[%emt 0:00:10]} Ra8 {[%emt 0:06:54]} 21.
Ra2 {[%emt 0:03:44]} Bf6 {[%emt 0:00:50]} 22. c3 {[%emt 0:09:11]} c6 {[%emt 0:
11:36]} 23. dxc6+ {[%emt 0:01:48]} Kxc6 {[%emt 0:00:13]} 24. Ke2 {[%emt 0:04:
17]} Bd8 {[%emt 0:05:04]} 25. b4 {[%emt 0:00:53]} Kd5 {[%emt 0:00:05]} 26. Kd3
{[%emt 0:00:05]} Bf6 {[%emt 0:02:56]} 27. cxd4 {[%emt 0:00:56]} Ra6 {[%emt 0:
01:57]} 28. Bc3 {[%emt 0:01:28]} Ra8 {[%emt 0:02:01]} 29. Ra1 {[%emt 0:00:07]}
Bh4 {[%emt 0:02:10]} 30. Bb2 {[%emt 0:02:07]} Bf6 {[%emt 0:03:08]} 31. Rc1 {
[%emt 0:04:16]} Bd8 {[%emt 0:00:04]} 32. g3 {[%emt 0:00:21]} h6 {[%emt 0:03:21]
} 33. h3 {[%emt 0:00:24]} h5 {[%emt 0:00:06]} 34. Rh1 {[%emt 0:04:33]} Rc8 {
[%emt 0:00:54]} 35. Bc3 {[%emt 0:01:06]} Bf6 {[%emt 0:00:17]} 36. Ra1 {[%emt 0:
03:19]} Ra8 {[%emt 0:00:18]} 37. Bb2 {[%emt 0:00:45]} Re8 {[%emt 0:01:37]} 38.
Rc1 {[%emt 0:04:13]} Re4 {[%emt 0:00:24]} 39. Rc7 {[%emt 0:00:01]} Re7 {
[%emt 0:00:27]} 40. Rc8 {[%emt 0:01:04]} Rh7 {[%emt 0:00:55]} 41. h4 {[%emt 0:
01:34]} Re7 {[%emt 0:04:06]} 42. Rf8 {[%emt 0:02:21]} Bg7 {[%emt 0:02:08]} 43.
Rg8 {[%emt 0:00:02]} Rc7 {[%emt 0:00:48]} 44. Bc3 {[%emt 0:00:35]} Re7 {
[%emt 0:01:44]} 45. Ra8 {[%emt 0:01:18]} Bh6 {[%emt 0:13:58]} 46. a6 {[%emt 0:
06:36]} bxa6 {[%emt 0:00:04]} 47. Rxa6 {[%emt 0:00:02]} Re1 {[%emt 0:07:25]}
48. Ra1 {[%emt 0:07:11]} Rxa1 {[%emt 0:01:38]} 49. Bxa1 {[%emt 0:00:02]} Bg7 {
[%emt 0:00:03]} 50. Bb2 {[%emt 0:00:05]} Bf6 {[%emt 0:00:03]} 51. Ba1 {[%emt 0:
00:03]} Bg7 {[%emt 0:00:04]} 52. Bb2 {[%emt 0:00:04]} Bf6 {[%emt 0:00:06]}
1/2-1/2

[Event "23rd ETCC Women 2021"]
[Site "Catez"]
[Date "2021.11.16"]
[Round "5.42"]
[White "Urh, Zala"]
[Black "Klinova, Masha"]
[Result "1/2-1/2"]
[ECO "A41"]
[WhiteElo "2332"]
[BlackElo "2264"]
[Annotator "NA"]
[PlyCount "95"]
[EventDate "2021.11.08"]
[EventType "team-tourn"]
[EventCountry "SLO"]
[SourceTitle "playchess.com"]
[Source "ChessBase"]
[SourceQuality "1"]
[WhiteTeam "Slovenia"]
[BlackTeam "Israel"]
[WhiteTeamCountry "SLO"]
[BlackTeamCountry "ISR"]
[TimeControl "40/5400+30:1800+30"]

1. d4 {[%emt 0:00:03]} d6 {[%emt 0:00:05]} 2. Nf3 {[%emt 0:00:10]} g6 {[%emt 0:
00:17]} 3. c4 {[%emt 0:00:06]} Bg7 {[%emt 0:00:23]} 4. Nc3 {[%emt 0:00:12]} Nc6
{[%emt 0:00:49]} 5. d5 {[%emt 0:00:20]} Ne5 {[%emt 0:01:46]} 6. Nxe5 {[%emt 0:
00:18]} Bxe5 {[%emt 0:00:05]} 7. g3 {[%emt 0:00:34]} Bg7 {[%emt 0:08:58]} 8.
Bg2 {[%emt 0:01:11]} Nf6 {[%emt 0:00:18]} 9. O-O {[%emt 0:02:20]} O-O {[%emt 0:
00:16]} 10. e4 {[%emt 0:09:46]} e5 {[%emt 0:09:33]} 11. Rb1 {[%emt 0:13:46]} a5
{[%emt 0:01:01]} 12. a3 {[%emt 0:00:59]} Nd7 {[%emt 0:02:27]} 13. b4 {[%emt 0:
04:06]} axb4 {[%emt 0:01:44]} 14. axb4 {[%emt 0:00:07]} f5 {[%emt 0:00:08]} 15.
Ne2 {[%emt 0:14:52]} Nf6 {[%emt 0:13:24]} 16. f3 {[%emt 0:02:08]} fxe4 {
[%emt 0:02:23]} 17. fxe4 {[%emt 0:00:16]} Ng4 {[%emt 0:00:11]} 18. h3 {[%emt 0:
06:35]} Rxf1+ {[%emt 0:05:56]} 19. Qxf1 {[%emt 0:00:35]} Nh6 {[%emt 0:02:13]}
20. Nc3 {[%emt 0:03:22]} Nf7 {[%emt 0:06:37]} 21. Rb2 {[%emt 0:05:14]} Qe7 {
[%emt 0:03:45]} 22. Rf2 {[%emt 0:07:19]} Ra1 {[%emt 0:04:08]} 23. Ra2 {[%emt 0:
03:42]} Rxa2 {[%emt 0:00:34]} 24. Nxa2 {[%emt 0:00:06]} Bh6 {[%emt 0:00:10]}
25. Bxh6 {[%emt 0:02:53]} Nxh6 {[%emt 0:01:35]} 26. Qc1 {[%emt 0:00:42]} Nf7 {
[%emt 0:02:28]} 27. Qa3 {[%emt 0:01:36]} Kg7 {[%emt 0:07:41]} 28. Qa8 {[%emt 0:
02:41]} Qd7 {[%emt 0:05:00]} 29. Nc3 {[%emt 0:07:09]} Ng5 {[%emt 0:03:46]} 30.
h4 {[%emt 0:00:25]} Nh3+ {[%emt 0:00:54]} 31. Kh2 {[%emt 0:00:38]} Nf2 {
[%emt 0:00:38]} 32. Qa7 {[%emt 0:06:10]} Nd3 {[%emt 0:05:49]} 33. Nb5 {[%emt 0:
03:46]} c6 {[%emt 0:05:15]} 34. dxc6 {[%emt 0:02:25]} bxc6 {[%emt 0:00:33]} 35.
Qxd7+ {[%emt 0:00:13]} Bxd7 {[%emt 0:00:04]} 36. Nxd6 {[%emt 0:00:13]} Nxb4 {
[%emt 0:00:14]} 37. Bh3 {[%emt 0:01:03]} Bxh3 {[%emt 0:02:34]} 38. Kxh3 {
[%emt 0:00:02]} Kf6 {[%emt 0:02:00]} 39. Kg4 {[%emt 0:00:26]} Nd3 {[%emt 0:01:
20]} 40. Nb7 {[%emt 0:01:11]} h5+ {[%emt 0:01:02]} 41. Kf3 {[%emt 0:02:19]} Ke6
{[%emt 0:04:29]} 42. Ke2 {[%emt 0:19:07]} Nc1+ {[%emt 0:08:18]} 43. Ke3 {
[%emt 0:03:25]} Nb3 {[%emt 0:01:17]} 44. Nd8+ {[%emt 0:00:31]} Kd7 {[%emt 0:02:
25]} 45. Nf7 {[%emt 0:00:01]} Ke6 {[%emt 0:00:09]} 46. Nd8+ {[%emt 0:00:01]}
Kd7 {[%emt 0:00:39]} 47. Nf7 {[%emt 0:00:01]} Ke6 {[%emt 0:00:10]} 48. Nd8+ {
[%emt 0:07:36]} 1/2-1/2

[Event "23rd ETCC Women 2021"]
[Site "Catez"]
[Date "2021.11.16"]
[Round "5.43"]
[White "Levitan, Ronit"]
[Black "Janzelj, Lara"]
[Result "1-0"]
[ECO "C55"]
[WhiteElo "2068"]
[BlackElo "2150"]
[Annotator "NA"]
[PlyCount "111"]
[EventDate "2021.11.08"]
[EventType "team-tourn"]
[EventCountry "SLO"]
[SourceTitle "playchess.com"]
[Source "ChessBase"]
[SourceQuality "1"]
[WhiteTeam "Israel"]
[BlackTeam "Slovenia"]
[WhiteTeamCountry "ISR"]
[BlackTeamCountry "SLO"]
[TimeControl "40/5400+30:1800+30"]

1. e4 {[%emt 0:01:23]} e5 {[%emt 0:00:10]} 2. Nf3 {[%emt 0:00:07]} Nc6 {
[%emt 0:00:05]} 3. Bc4 {[%emt 0:00:07]} Nf6 {[%emt 0:00:25]} 4. d3 {[%emt 0:00:
21]} h6 {[%emt 0:00:14]} 5. a4 {[%emt 0:01:29]} d6 {[%emt 0:01:27]} 6. O-O {
[%emt 0:00:34]} g5 {[%emt 0:00:10]} 7. Nc3 {[%emt 0:01:03]} Bg7 {[%emt 0:00:48]
} 8. a5 {[%emt 0:00:37]} a6 {[%emt 0:03:06]} 9. d4 {[%emt 0:03:41]} Bg4 {
[%emt 0:07:56]} 10. dxe5 {[%emt 0:03:25]} Nxe5 {[%emt 0:01:19]} 11. Be2 {
[%emt 0:00:42]} Bxf3 {[%emt 0:07:09]} 12. Bxf3 {[%emt 0:00:08]} Nxf3+ {[%emt 0:
04:55]} 13. Qxf3 {[%emt 0:00:09]} Qe7 {[%emt 0:01:34]} 14. e5 {[%emt 0:08:34]}
dxe5 {[%emt 0:00:47]} 15. Qxb7 {[%emt 0:00:14]} O-O {[%emt 0:00:24]} 16. Re1 {
[%emt 0:06:18]} Qd6 {[%emt 0:06:12]} 17. Ne4 {[%emt 0:04:43]} Nxe4 {[%emt 0:00:
09]} 18. Qxe4 {[%emt 0:00:12]} Rab8 {[%emt 0:02:39]} 19. b3 {[%emt 0:02:02]}
Qe6 {[%emt 0:12:20]} 20. Bb2 {[%emt 0:11:32]} f5 {[%emt 0:03:08]} 21. Qe2 {
[%emt 0:06:17]} g4 {[%emt 0:04:09]} 22. Ra4 {[%emt 0:02:53]} Rf7 {[%emt 0:06:
07]} 23. Rc4 {[%emt 0:10:53]} Rb5 {[%emt 0:03:06]} 24. Bc3 {[%emt 0:00:40]} Rd5
{[%emt 0:01:34]} 25. Rd1 {[%emt 0:05:54]} Rxd1+ {[%emt 0:01:58]} 26. Qxd1 {
[%emt 0:00:10]} Rd7 {[%emt 0:00:07]} 27. Qe2 {[%emt 0:01:06]} Qd6 {[%emt 0:02:
17]} 28. h3 {[%emt 0:14:59]} h5 {[%emt 0:02:29]} 29. Bb4 {[%emt 0:01:06]} Qh6 {
[%emt 0:01:32]} 30. Ba3 {[%emt 0:06:16]} gxh3 {[%emt 0:06:42]} 31. gxh3 {
[%emt 0:00:08]} e4 {[%emt 0:02:15]} 32. Qf1 {[%emt 0:07:27]} Be5 {[%emt 0:00:
54]} 33. Bc1 {[%emt 0:00:31]} Rg7+ {[%emt 0:00:24]} 34. Kh1 {[%emt 0:00:08]}
Qg6 {[%emt 0:01:19]} 35. Rc5 {[%emt 0:00:52]} Bd6 {[%emt 0:00:23]} 36. Rd5 {
[%emt 0:00:38]} Qf6 {[%emt 0:03:36]} 37. Qxa6 {[%emt 0:00:49]} Qe6 {[%emt 0:06:
28]} 38. Qc4 {[%emt 0:00:23]} Kh7 {[%emt 0:00:17]} 39. Bb2 {[%emt 0:00:31]} Rg6
{[%emt 0:01:51]} 40. Rd1 {[%emt 0:00:07]} Qxc4 {[%emt 0:04:35]} 41. bxc4 {
[%emt 0:30:16]} Rg8 {[%emt 0:06:04]} 42. Rd5 {[%emt 0:00:00]} Kg6 {[%emt 0:01:
21]} 43. c5 {[%emt 0:00:00]} Bf4 {[%emt 0:01:06]} 44. c6 {[%emt 0:00:00]} Rb8 {
[%emt 0:05:15]} 45. Bd4 {[%emt 0:00:00]} Rb4 {[%emt 0:01:55]} 46. a6 {[%emt 0:
00:00]} Ra4 {[%emt 0:01:10]} 47. a7 {[%emt 0:00:00]} Bg5 {[%emt 0:00:54]} 48.
Rd7 {[%emt 0:00:00]} f4 {[%emt 0:00:24]} 49. Rxc7 {[%emt 0:00:00]} Bf6 {
[%emt 0:02:21]} 50. Bxf6 {[%emt 0:00:00]} Kxf6 {[%emt 0:00:08]} 51. Rf7+ {
[%emt 0:00:00]} Kxf7 {[%emt 0:00:06]} 52. c7 {[%emt 0:00:00]} e3 {[%emt 0:00:
44]} 53. fxe3 {[%emt 0:00:00]} fxe3 {[%emt 0:00:18]} 54. c8=Q {[%emt 0:00:00]}
e2 {[%emt 0:00:39]} 55. Qf5+ {[%emt 0:00:00]} Kg7 {[%emt 0:00:31]} 56. Qe5+ {
[%emt 0:00:00]} 1-0

[Event "23rd ETCC Women 2021"]
[Site "Catez"]
[Date "2021.11.16"]
[Round "5.44"]
[White "Rozman, Monika"]
[Black "Katkov, Michelle"]
[Result "1/2-1/2"]
[ECO "C54"]
[WhiteElo "2112"]
[BlackElo "2059"]
[Annotator "NA"]
[PlyCount "89"]
[EventDate "2021.11.08"]
[EventType "team-tourn"]
[EventCountry "SLO"]
[SourceTitle "playchess.com"]
[Source "ChessBase"]
[SourceQuality "1"]
[WhiteTeam "Slovenia"]
[BlackTeam "Israel"]
[WhiteTeamCountry "SLO"]
[BlackTeamCountry "ISR"]
[TimeControl "40/5400+30:1800+30"]

1. e4 {[%emt 0:00:03]} e5 {[%emt 0:00:07]} 2. Nf3 {[%emt 0:00:02]} Nc6 {
[%emt 0:00:07]} 3. Bc4 {[%emt 0:00:03]} Bc5 {[%emt 0:00:10]} 4. c3 {[%emt 0:00:
03]} Nf6 {[%emt 0:00:05]} 5. d3 {[%emt 0:00:04]} d6 {[%emt 0:00:06]} 6. O-O {
[%emt 0:00:04]} O-O {[%emt 0:00:44]} 7. Re1 {[%emt 0:00:07]} a5 {[%emt 0:00:19]
} 8. h3 {[%emt 0:00:15]} h6 {[%emt 0:00:08]} 9. Nbd2 {[%emt 0:00:20]} Be6 {
[%emt 0:00:16]} 10. Bb5 {[%emt 0:00:14]} Qb8 {[%emt 0:00:24]} 11. Nf1 {[%emt 0:
00:08]} Qa7 {[%emt 0:00:06]} 12. Be3 {[%emt 0:00:06]} Bxe3 {[%emt 0:00:07]} 13.
Nxe3 {[%emt 0:00:04]} a4 {[%emt 0:00:14]} 14. Bc4 {[%emt 0:17:31]} Bxc4 {
[%emt 0:03:36]} 15. Nxc4 {[%emt 0:00:10]} b5 {[%emt 0:01:32]} 16. Ne3 {[%emt 0:
00:30]} Rfe8 {[%emt 0:10:43]} 17. Nh4 {[%emt 0:04:42]} Ne7 {[%emt 0:05:46]} 18.
Qf3 {[%emt 0:02:45]} Rad8 {[%emt 0:09:46]} 19. Nhf5 {[%emt 0:03:12]} Nxf5 {
[%emt 0:00:18]} 20. Nxf5 {[%emt 0:00:15]} Kh7 {[%emt 0:01:18]} 21. d4 {[%emt 0:
04:50]} exd4 {[%emt 0:14:08]} 22. Nxd4 {[%emt 0:02:47]} Qb7 {[%emt 0:08:42]}
23. Qf5+ {[%emt 0:02:36]} Kg8 {[%emt 0:00:21]} 24. Qxb5 {[%emt 0:00:20]} Qxb5 {
[%emt 0:01:49]} 25. Nxb5 {[%emt 0:00:03]} Rb8 {[%emt 0:05:39]} 26. c4 {[%emt 0:
05:26]} Rxe4 {[%emt 0:03:04]} 27. b3 {[%emt 0:02:17]} axb3 {[%emt 0:05:34]} 28.
axb3 {[%emt 0:02:03]} Rxe1+ {[%emt 0:05:52]} 29. Rxe1 {[%emt 0:00:02]} Kf8 {
[%emt 0:01:55]} 30. Re3 {[%emt 0:02:47]} d5 {[%emt 0:00:57]} 31. Nxc7 {[%emt 0:
01:49]} dxc4 {[%emt 0:00:05]} 32. bxc4 {[%emt 0:00:20]} Rc8 {[%emt 0:00:06]}
33. Nd5 {[%emt 0:00:28]} Rxc4 {[%emt 0:00:39]} 34. Nxf6 {[%emt 0:00:23]} gxf6 {
[%emt 0:00:06]} 35. g3 {[%emt 0:01:29]} Kg7 {[%emt 0:00:11]} 36. Kg2 {[%emt 0:
04:02]} f5 {[%emt 0:02:38]} 37. Ra3 {[%emt 0:02:42]} Kg6 {[%emt 0:00:37]} 38.
Ra6+ {[%emt 0:05:11]} f6 {[%emt 0:00:33]} 39. Ra3 {[%emt 0:00:04]} Kg5 {
[%emt 0:01:51]} 40. Rb3 {[%emt 0:03:25]} h5 {[%emt 0:01:37]} 41. h4+ {[%emt 0:
30:35]} Kg6 {[%emt 0:30:12]} 42. Ra3 {[%emt 0:05:08]} Rb4 {[%emt 0:00:08]} 43.
Kf3 {[%emt 0:02:10]} Rc4 {[%emt 0:00:19]} 44. Rd3 {[%emt 0:00:09]} Rb4 {
[%emt 0:00:16]} 45. Ra3 {[%emt 0:03:28]} 1/2-1/2

[Event "23rd ETCC Women 2021"]
[Site "Catez"]
[Date "2021.11.16"]
[Round "5.45"]
[White "Pilsova, Karolina"]
[Black "Stojkovska, Monika"]
[Result "1-0"]
[ECO "C07"]
[WhiteElo "2281"]
[BlackElo "2066"]
[Annotator "NA"]
[PlyCount "81"]
[EventDate "2021.11.08"]
[EventType "team-tourn"]
[EventCountry "SLO"]
[SourceTitle "playchess.com"]
[Source "ChessBase"]
[SourceQuality "1"]
[WhiteTeam "Czech Republic"]
[BlackTeam "Macedonia"]
[WhiteTeamCountry "CZE"]
[BlackTeamCountry "MKD"]
[TimeControl "40/5400+30:1800+30"]

1. e4 {[%emt 0:24:51]} e6 2. d4 {[%emt 0:00:30]} d5 3. Nd2 {[%emt 0:00:30]} c5
4. exd5 {[%emt 0:00:30]} Qxd5 5. Ngf3 {[%emt 0:00:30]} cxd4 6. Bc4 {[%emt 0:00:
30]} Qd7 7. O-O {[%emt 0:00:30]} Nc6 8. Nb3 {[%emt 0:00:30]} a6 9. Nbxd4 {
[%emt 0:00:30]} Nxd4 10. Nxd4 {[%emt 0:00:30]} Qc7 11. Qe2 {[%emt 0:00:30]} Bd6
12. Kh1 {[%emt 0:00:30]} Ne7 13. Rd1 {[%emt 0:00:30]} Bxh2 {[%emt 0:50:59]} 14.
Bxe6 {[%emt 0:00:30]} Be5 {[%emt 0:00:30]} 15. Bxc8 {[%emt 0:00:30]} Rxc8 {
[%emt 0:00:30]} 16. Bg5 {[%emt 0:00:30]} O-O {[%emt 0:00:30]} 17. Nf3 {[%emt 0:
00:30]} Bxb2 {[%emt 0:00:30]} 18. Rab1 {[%emt 0:00:30]} Ba3 {[%emt 0:00:30]}
19. Rb3 {[%emt 0:00:30]} Bc5 {[%emt 0:00:30]} 20. Rc3 {[%emt 0:00:30]} Ng6 {
[%emt 0:00:30]} 21. Be3 {[%emt 0:00:30]} Qa5 {[%emt 0:00:30]} 22. Qc4 {[%emt 0:
00:30]} b5 {[%emt 0:00:30]} 23. Qb3 {[%emt 0:00:30]} Bxe3 {[%emt 0:00:30]} 24.
Rxe3 {[%emt 0:00:30]} Qc7 {[%emt 0:00:30]} 25. Rd2 {[%emt 0:00:30]} Qc4 {
[%emt 0:00:30]} 26. Kg1 {[%emt 0:00:30]} h6 {[%emt 0:00:30]} 27. Red3 {[%emt 0:
00:30]} Nf4 {[%emt 0:00:30]} 28. Rd7 {[%emt 0:00:30]} Rc5 {[%emt 0:00:30]} 29.
g3 {[%emt 0:00:30]} Ne2+ {[%emt 0:00:30]} 30. Kg2 {[%emt 0:00:30]} Nc3 {
[%emt 0:00:30]} 31. Ra7 {[%emt 0:00:30]} Qxb3 {[%emt 0:00:30]} 32. axb3 {
[%emt 0:00:30]} Rc6 {[%emt 0:00:30]} 33. Ne5 {[%emt 0:00:30]} Re6 {[%emt 0:00:
30]} 34. f4 {[%emt 0:00:30]} Ne4 {[%emt 0:00:30]} 35. Rdd7 {[%emt 0:00:30]} Rf6
{[%emt 0:00:30]} 36. Re7 {[%emt 0:00:30]} Rd8 {[%emt 0:00:30]} 37. Nxf7 {
[%emt 0:00:30]} Rd2+ {[%emt 0:00:30]} 38. Kf3 {[%emt 0:00:30]} Rf2+ {[%emt 0:
00:30]} 39. Ke3 {[%emt 0:00:30]} Rf1 {[%emt 0:00:30]} 40. Re8+ {[%emt 0:00:30]}
Kh7 {[%emt 0:00:30]} 41. Rxe4 {[%emt 0:30:30]} 1-0

[Event "23rd ETCC Women 2021"]
[Site "Catez"]
[Date "2021.11.16"]
[Round "5.46"]
[White "Bejatovic, Bojana"]
[Black "Petrova, Kristyna"]
[Result "0-1"]
[ECO "D00"]
[WhiteElo "2031"]
[BlackElo "2275"]
[Annotator "NA"]
[PlyCount "74"]
[EventDate "2021.11.08"]
[EventType "team-tourn"]
[EventCountry "SLO"]
[SourceTitle "playchess.com"]
[Source "ChessBase"]
[SourceQuality "1"]
[WhiteTeam "Macedonia"]
[BlackTeam "Czech Republic"]
[WhiteTeamCountry "MKD"]
[BlackTeamCountry "CZE"]
[TimeControl "40/5400+30:1800+30"]

1. d4 {[%emt 0:00:04]} Nf6 {[%emt 0:00:05]} 2. Nc3 {[%emt 0:00:12]} d5 {
[%emt 0:00:27]} 3. Bf4 {[%emt 0:00:05]} e6 {[%emt 0:01:19]} 4. e3 {[%emt 0:01:
18]} a6 {[%emt 0:00:09]} 5. g4 {[%emt 0:08:56]} h6 {[%emt 0:34:09]} 6. Qf3 {
[%emt 0:10:18]} Bd6 {[%emt 0:03:43]} 7. h4 {[%emt 0:03:35]} Bxf4 {[%emt 0:02:
26]} 8. exf4 {[%emt 0:00:47]} Qd6 {[%emt 0:12:07]} 9. g5 {[%emt 0:09:19]} Ne4 {
[%emt 0:01:52]} 10. Nge2 {[%emt 0:06:35]} Nxc3 {[%emt 0:04:19]} 11. Nxc3 {
[%emt 0:00:19]} Nc6 {[%emt 0:00:10]} 12. O-O-O {[%emt 0:00:19]} Ne7 {[%emt 0:
00:07]} 13. Bd3 {[%emt 0:01:15]} Bd7 {[%emt 0:01:14]} 14. Rdg1 {[%emt 0:14:33]}
O-O-O {[%emt 0:00:33]} 15. gxh6 {[%emt 0:02:53]} g6 {[%emt 0:00:30]} 16. h5 {
[%emt 0:00:12]} Rxh6 {[%emt 0:00:04]} 17. hxg6 {[%emt 0:00:26]} Rxh1 {[%emt 0:
00:20]} 18. Rxh1 {[%emt 0:00:35]} fxg6 {[%emt 0:00:06]} 19. Ne2 {[%emt 0:03:06]
} Bb5 {[%emt 0:02:55]} 20. Bxb5 {[%emt 0:03:14]} axb5 {[%emt 0:00:02]} 21. Qg4
{[%emt 0:08:56]} b4 {[%emt 0:01:13]} 22. Rh7 {[%emt 0:08:42]} Nf5 {[%emt 0:07:
30]} 23. Qg5 {[%emt 0:02:50]} Qa6 {[%emt 0:06:31]} 24. Kd2 {[%emt 0:01:22]}
Qxa2 {[%emt 0:00:32]} 25. Qxg6 {[%emt 0:00:04]} Qa6 {[%emt 0:00:07]} 26. Qf6 {
[%emt 0:03:03]} Qd6 {[%emt 0:03:03]} 27. Qe5 {[%emt 0:02:22]} Rf8 {[%emt 0:03:
48]} 28. Kd3 {[%emt 0:03:07]} Qa6+ {[%emt 0:02:33]} 29. Kd2 {[%emt 0:00:01]}
Qb6 {[%emt 0:02:54]} 30. Kd3 {[%emt 0:00:34]} Kb8 {[%emt 0:00:41]} 31. Nc1 {
[%emt 0:00:47]} Nd6 {[%emt 0:02:05]} 32. Qg7 {[%emt 0:02:15]} Rxf4 {[%emt 0:00:
58]} 33. Qh8+ {[%emt 0:03:34]} Ka7 {[%emt 0:00:04]} 34. Nb3 {[%emt 0:00:53]}
Qa6+ {[%emt 0:02:08]} 35. Ke3 {[%emt 0:00:20]} Re4+ {[%emt 0:00:16]} 36. Kf3 {
[%emt 0:00:04]} Qe2+ {[%emt 0:00:04]} 37. Kg3 {[%emt 0:00:15]} Rg4+ {[%emt 0:
00:13]} 0-1

[Event "23rd ETCC Women 2021"]
[Site "Catez"]
[Date "2021.11.16"]
[Round "5.47"]
[White "Miturova, Magdalena"]
[Black "Nikolovska, Dragana"]
[Result "1-0"]
[ECO "B15"]
[WhiteElo "2248"]
[BlackElo "1877"]
[Annotator "NA"]
[PlyCount "53"]
[EventDate "2021.11.08"]
[EventType "team-tourn"]
[EventCountry "SLO"]
[SourceTitle "playchess.com"]
[Source "ChessBase"]
[SourceQuality "1"]
[WhiteTeam "Czech Republic"]
[BlackTeam "Macedonia"]
[WhiteTeamCountry "CZE"]
[BlackTeamCountry "MKD"]
[TimeControl "40/5400+30:1800+30"]

1. e4 {[%emt 0:00:04]} g6 {[%emt 0:00:12]} 2. d4 {[%emt 0:00:50]} Bg7 {[%emt 0:
00:11]} 3. Nc3 {[%emt 0:05:25]} c6 {[%emt 0:00:16]} 4. Nf3 {[%emt 0:02:12]} d5
{[%emt 0:00:27]} 5. h3 {[%emt 0:00:08]} dxe4 {[%emt 0:00:28]} 6. Nxe4 {[%emt 0:
00:07]} Nf6 {[%emt 0:00:19]} 7. Nxf6+ {[%emt 0:01:55]} exf6 {[%emt 0:00:55]} 8.
Bd3 {[%emt 0:03:47]} O-O {[%emt 0:00:37]} 9. O-O {[%emt 0:00:18]} Be6 {[%emt 0:
04:37]} 10. Be3 {[%emt 0:03:54]} Nd7 {[%emt 0:06:15]} 11. c4 {[%emt 0:01:07]}
Nb6 {[%emt 0:06:33]} 12. Rc1 {[%emt 0:04:27]} Re8 {[%emt 0:10:24]} 13. Qb3 {
[%emt 0:05:08]} Qe7 {[%emt 0:15:13]} 14. a4 {[%emt 0:04:53]} Rad8 {[%emt 0:03:
18]} 15. Rfd1 {[%emt 0:03:22]} Nc8 {[%emt 0:14:11]} 16. Bf1 {[%emt 0:01:17]}
Bf5 {[%emt 0:06:52]} 17. Bf4 {[%emt 0:14:06]} Rd7 {[%emt 0:06:58]} 18. d5 {
[%emt 0:12:31]} cxd5 {[%emt 0:02:26]} 19. cxd5 {[%emt 0:00:29]} Be4 {[%emt 0:
03:04]} 20. Bb5 {[%emt 0:01:09]} Nd6 {[%emt 0:08:07]} 21. Bxd7 {[%emt 0:01:38]}
Qxd7 {[%emt 0:00:01]} 22. Nd4 {[%emt 0:02:37]} b6 {[%emt 0:02:36]} 23. Bxd6 {
[%emt 0:07:42]} Qxd6 {[%emt 0:00:05]} 24. Nb5 {[%emt 0:00:17]} Qb8 {[%emt 0:03:
44]} 25. d6 {[%emt 0:00:56]} Bf5 {[%emt 0:01:09]} 26. Nd4 {[%emt 0:05:50]} Bd7
{[%emt 0:01:51]} 27. Rc7 {[%emt 0:00:22]} 1-0

[Event "23rd ETCC Women 2021"]
[Site "Catez"]
[Date "2021.11.16"]
[Round "5.48"]
[White "Manova, Ivana"]
[Black "Richterova, Natasa"]
[Result "0-1"]
[ECO "C47"]
[WhiteElo "1809"]
[BlackElo "2185"]
[Annotator "NA"]
[PlyCount "74"]
[EventDate "2021.11.08"]
[EventType "team-tourn"]
[EventCountry "SLO"]
[SourceTitle "playchess.com"]
[Source "ChessBase"]
[SourceQuality "1"]
[WhiteTeam "Macedonia"]
[BlackTeam "Czech Republic"]
[WhiteTeamCountry "MKD"]
[BlackTeamCountry "CZE"]
[TimeControl "40/5400+30:1800+30"]

1. e4 {[%emt 0:00:08]} e5 {[%emt 0:00:06]} 2. Nf3 {[%emt 0:00:14]} Nf6 {
[%emt 0:00:06]} 3. Nc3 {[%emt 0:06:43]} Nc6 {[%emt 0:00:51]} 4. d4 {[%emt 0:00:
25]} exd4 {[%emt 0:00:12]} 5. Nxd4 {[%emt 0:00:08]} Nxe4 {[%emt 0:00:07]} 6.
Nxe4 {[%emt 0:04:12]} Qe7 {[%emt 0:00:11]} 7. f3 {[%emt 0:01:10]} d5 {[%emt 0:
00:18]} 8. Bb5 {[%emt 0:03:14]} Bd7 {[%emt 0:00:34]} 9. Bxc6 {[%emt 0:04:26]}
bxc6 {[%emt 0:00:06]} 10. O-O {[%emt 0:00:43]} dxe4 {[%emt 0:00:32]} 11. fxe4 {
[%emt 0:01:00]} g6 {[%emt 0:10:52]} 12. Qd3 {[%emt 0:08:36]} Bg7 {[%emt 0:05:
00]} 13. Bf4 {[%emt 0:02:45]} O-O {[%emt 0:11:53]} 14. c3 {[%emt 0:04:42]} Rab8
{[%emt 0:17:15]} 15. Rf2 {[%emt 0:02:25]} c5 {[%emt 0:00:55]} 16. Nb3 {[%emt 0:
02:23]} Bb5 {[%emt 0:09:04]} 17. Qe3 {[%emt 0:07:35]} c4 {[%emt 0:03:14]} 18.
Nc5 {[%emt 0:02:44]} Bc6 {[%emt 0:12:05]} 19. Re1 {[%emt 0:13:02]} Rfe8 {
[%emt 0:05:44]} 20. Na6 {[%emt 0:03:48]} Rb7 {[%emt 0:03:01]} 21. e5 {[%emt 0:
03:38]} Rb6 {[%emt 0:03:11]} 22. Nb4 {[%emt 0:02:31]} Bb7 {[%emt 0:00:41]} 23.
Qe2 {[%emt 0:13:17]} Qe6 {[%emt 0:06:32]} 24. a4 {[%emt 0:03:48]} a5 {[%emt 0:
01:19]} 25. Na2 {[%emt 0:00:27]} Bc6 {[%emt 0:00:47]} 26. Qc2 {[%emt 0:03:27]}
Reb8 {[%emt 0:01:34]} 27. Qc1 {[%emt 0:04:15]} Bxa4 {[%emt 0:00:14]} 28. Bh6 {
[%emt 0:00:58]} Bxh6 {[%emt 0:03:02]} 29. Qxh6 {[%emt 0:00:03]} Rxb2 {[%emt 0:
00:10]} 30. Rf4 {[%emt 0:01:49]} Qd5 {[%emt 0:00:39]} 31. Rg4 {[%emt 0:00:44]}
Bc6 {[%emt 0:00:55]} 32. Qh3 {[%emt 0:00:35]} Bd7 {[%emt 0:00:42]} 33. e6 {
[%emt 0:00:25]} Bxe6 {[%emt 0:00:03]} 34. Nc1 {[%emt 0:00:38]} Bxg4 {[%emt 0:
00:24]} 35. Qxg4 {[%emt 0:00:06]} Qd2 {[%emt 0:01:10]} 36. Rd1 {[%emt 0:00:38]}
Qf2+ {[%emt 0:00:17]} 37. Kh1 {[%emt 0:00:12]} Re8 {[%emt 0:00:19]} 0-1